bitfinex-derivatives/quotes_SOLF0:USTF0_20220104
["timestamp","ask_amount","ask_price","bid_price","bid_amount"]
[1641324431166,3.0,168.55,168.48,12.41204986]
[1641324431366,16.56304986,168.56,168.48,12.41204986]
[1641324432367,4.151,168.56,168.49,12.41204986]
[1641324432667,40.07683986,168.57,168.49,12.41204986]
[1641324432869,27.66479,168.57,168.5,12.41204986]
[1641324433668,27.66479,168.57,168.51,12.41204986]
[1641324434469,27.66479,168.57,168.5,12.41204986]
[1641324434670,31.92279,168.57,168.5,12.41204986]
[1641324435070,34.92279,168.57,168.5,12.41204986]
[1641324435270,34.92279,168.57,168.46,27.66479]
[1641324435770,3.0,168.56,168.46,27.66479]
[1641324436671,34.92279,168.57,168.46,27.66479]
[1641324437172,3.0,168.56,168.46,27.66479]
[1641324437673,31.92279,168.57,168.46,27.66479]
[1641324437674,34.92279,168.57,168.46,27.66479]
[1641324437873,31.92279,168.57,168.46,27.66479]
[1641324438072,34.92279,168.57,168.46,27.66479]
[1641324438673,3.0,168.56,168.46,27.66479]
[1641324439072,27.66479,168.57,168.46,27.66479]
[1641324439475,27.66479,168.6,168.49,3.0]
[1641324439674,27.66479,168.6,168.49,7.41]
[1641324439876,27.66479,168.6,168.49,4.41]
[1641324440675,27.66479,168.6,168.48,21.75501123]
[1641324440875,27.66479,168.6,168.5,27.66479]
[1641324441575,30.66479,168.6,168.5,27.66479]
[1641324441773,3.0,168.58,168.48,12.41204986]
[1641324441977,3.0,168.57,168.48,12.41204986]
[1641324442174,3.0,168.56,168.48,12.41204986]
[1641324442375,7.8,168.56,168.47,12.41204986]
[1641324442776,27.66479,168.54,168.47,12.41204986]
[1641324443175,27.66479,168.54,168.46,27.66479]
[1641324444775,27.66479,168.57,168.46,30.66479]
[1641324444977,27.66479,168.57,168.46,27.66479]
[1641324445378,27.66479,168.57,168.5,4.15543356]
[1641324446577,3.0,168.56,168.5,4.15543356]
[1641324446779,27.66479,168.53,168.5,4.15543356]
[1641324447082,31.82022356,168.53,168.52,2.75843356]
[1641324447278,34.82022356,168.53,168.52,3.356e-05]
[1641324447578,30.66479,168.53,168.48,12.41204986]
[1641324447778,38.04905459,168.53,168.46,27.66479]
[1641324448479,41.04905459,168.53,168.46,27.66479]
[1641324448680,12.55119833,168.52,168.46,27.66479]
[1641324448879,18.27819833,168.52,168.46,27.66479]
[1641324450183,5.727,168.52,168.46,27.66479]
[1641324450983,27.66479,168.53,168.46,27.66479]
[1641324458493,3.0,168.51,168.46,27.66479]
[1641324458693,3.0,168.52,168.46,27.66479]
[1641324459094,30.66479,168.53,168.46,27.66479]
[1641324459397,27.66479,168.53,168.46,27.66479]
[1641324459597,27.66479,168.53,168.43,27.66479]
[1641324461104,27.66479,168.5,168.43,27.66479]
[1641324461700,27.66479,168.5,168.42,59.3561]
[1641324462505,33.68379,168.5,168.41,12.41204986]
[1641324462902,36.68379,168.5,168.41,12.41204986]
[1641324463302,3.0,168.49,168.4,60.1187]
[1641324463503,3.0,168.48,168.4,60.1187]
[1641324464302,46.23498833,168.5,168.4,60.1187]
[1641324464503,3.0,168.47,168.4,60.1187]
[1641324464703,61.9768,168.49,168.4,60.1187]
[1641324464903,3.0,168.47,168.4,60.1187]
[1641324465105,27.66479,168.45,168.4,60.1187]
[1641324465303,12.55119833,168.47,168.4,60.1187]
[1641324465902,12.55119833,168.47,168.4,72.53074986]
[1641324466103,12.55119833,168.48,168.4,72.53074986]
[1641324466803,12.55119833,168.47,168.4,60.1187]
[1641324467003,12.55119833,168.47,168.39,40.07683986]
[1641324467303,43.21598833,168.47,168.39,40.07683986]
[1641324467504,3.0,168.46,168.39,40.07683986]
[1641324467705,3.0,168.45,168.4,1.31034101]
[1641324467904,12.55119833,168.46,168.4,1.31034101]
[1641324469004,12.55119833,168.44,168.4,1.31034101]
[1641324469904,12.55119833,168.44,168.39,27.66479]
[1641324470105,5.683,168.44,168.39,27.66479]
[1641324470707,5.683,168.44,168.37,73.10404986]
[1641324471005,2.87519539,168.43,168.4,1.31031341]
[1641324471305,27.66479,168.42,168.4,1.31031341]
[1641324471706,27.66479,168.42,168.38,12.41204986]
[1641324472706,27.66479,168.42,168.37,12.41204986]
[1641324472907,20.96774029,168.42,168.37,12.41204986]
[1641324473607,25.42874029,168.42,168.37,12.41204986]
[1641324474208,25.42874029,168.42,168.32,3.0]
[1641324474907,20.96774029,168.42,168.31,34.01363819]
[1641324475108,20.96774029,168.42,168.32,3.0]
[1641324475308,20.96774029,168.42,168.31,34.01363819]
[1641324475509,20.96774029,168.42,168.31,31.01363819]
[1641324476308,20.96774029,168.42,168.32,3.0]
[1641324476509,20.96774029,168.42,168.31,31.01363819]
[1641324476708,26.95574029,168.42,168.31,27.66479]
[1641324476910,26.95574029,168.42,168.31,30.66479]
[1641324477709,26.95574029,168.42,168.31,27.66479]
[1641324479610,26.95574029,168.42,168.31,30.66479]
[1641324479811,26.95574029,168.42,168.31,31.01375199]
[1641324480611,29.95574029,168.42,168.31,31.01375199]
[1641324480813,26.95574029,168.42,168.31,31.01375199]
[1641324481012,26.95574029,168.42,168.31,27.66479]
[1641324481212,54.62053029,168.42,168.31,27.66479]
[1641324481611,57.62053029,168.42,168.31,27.66479]
[1641324482013,12.55755531,168.4,168.32,20.00690601]
[1641324483016,15.43428385,168.41,168.33,12.41204986]
[1641324484117,2.87672854,168.41,168.34,12.41204986]
[1641324489321,2.87672854,168.41,168.32,7.59485615]
[1641324489322,2.87672854,168.41,168.32,1.31008549]
[1641324489523,8.84472854,168.41,168.32,1.31008549]
[1641324490526,2.87672854,168.4,168.32,1.31008549]
[1641324492325,2.87672854,168.41,168.33,3.0]
[1641324492524,2.87672854,168.41,168.33,9.599]
[1641324492924,2.87672854,168.41,168.33,6.599]
[1641324493125,15.43428385,168.45,168.34,1.31008549]
[1641324493325,27.66479,168.43,168.34,28.97487549]
[1641324493925,27.66479,168.43,168.34,1.31008549]
[1641324494327,2.87672854,168.42,168.35,1.31008549]
[1641324494927,2.87672854,168.42,168.32,1.31008549]
[1641324496630,2.87672854,168.42,168.32,4.31008549]
[1641324497029,2.87672854,168.42,168.33,1.31008549]
[1641324497229,2.87672854,168.42,168.33,28.97487549]
[1641324497429,2.87672854,168.42,168.33,1.31008549]
[1641324498130,90.22849,168.43,168.33,1.31008549]
[1641324498329,90.22849,168.43,168.34,1.31008549]
[1641324499129,90.22849,168.43,168.31,67.7205]
[1641324499130,2.91196703,168.42,168.32,22.86287247]
[1641324499330,2.91196703,168.42,168.33,27.66479]
[1641324499730,90.22849,168.43,168.33,27.66479]
[1641324499930,90.22849,168.43,168.34,1.31008549]
[1641324500531,27.66479,168.43,168.34,1.31008549]
[1641324501735,27.66479,168.43,168.33,12.41204986]
[1641324503434,27.66479,168.4,168.32,19.86284768]
[1641324503632,31.95579,168.4,168.32,19.86284768]
[1641324504135,2.91193626,168.39,168.34,12.41204986]
[1641324505034,2.91193626,168.39,168.33,12.41204986]
[1641324505939,2.91193626,168.39,168.32,19.86284768]
[1641324507237,15.46949157,168.39,168.32,1.31008549]
[1641324507437,27.66479,168.37,168.32,1.31008549]
[1641324507636,33.00279,168.37,168.32,1.31008549]
[1641324508338,33.00279,168.37,168.33,4.18797632]
[1641324508540,4.18797632,168.34,168.33,4.18797632]
[1641324510943,4.18797632,168.34,168.29,13.72213535]
[1641324511344,6.028,168.35,168.2,50.13210151]
[1641324511545,27.66479,168.27,168.25,12.56655733]
[1641324511744,33.16979,168.27,168.25,12.56655733]
[1641324512244,5.505,168.27,168.25,12.56655733]
[1641324512445,5.505,168.27,168.22,33.39530646]
[1641324513044,5.505,168.27,168.18,27.66479]
[1641324515247,27.66479,168.3,168.18,27.66479]
[1641324515449,27.66479,168.3,168.21,27.66479]
[1641324519352,27.66479,168.3,168.21,61.06009646]
[1641324520753,27.66479,168.3,168.21,27.66479]
[1641324522655,61.9949,168.33,168.22,3.0]
[1641324522855,61.9949,168.33,168.21,27.66479]
[1641324523256,61.9949,168.33,168.21,30.66479]
[1641324523556,61.9949,168.33,168.21,27.66479]
[1641324523856,61.9949,168.33,168.21,64.41195737]
[1641324524056,61.9949,168.33,168.21,74.48326172]
[1641324524256,61.9949,168.33,168.21,77.48326172]
[1641324524556,61.9949,168.33,168.22,43.46661081]
[1641324524756,61.9949,168.33,168.22,47.81261081]
[1641324525157,3.0,168.32,168.22,47.81261081]
[1641324525356,3.0,168.32,168.22,4.346]
[1641324525558,27.66479,168.28,168.22,4.346]
[1641324525757,27.66479,168.28,168.21,33.39530646]
[1641324526158,27.66479,168.28,168.2,64.6811]
[1641324527160,27.66479,168.28,168.19,3.35232008]
[1641324528663,27.66479,168.28,168.18,27.66479]
[1641324528861,92.33639,168.28,168.19,64.5987]
[1641324531362,92.33639,168.28,168.18,30.66479]
[1641324531562,92.33639,168.28,168.2,6.15953386]
[1641324532463,92.33639,168.28,168.19,6.15953386]
[1641324533265,95.33639,168.28,168.19,6.15953386]
[1641324533665,3.0,168.27,168.19,6.15953386]
[1641324533866,85.6317546,168.28,168.19,6.15953386]
[1641324534265,85.6317546,168.28,168.19,65.82973386]
[1641324534467,85.6317546,168.28,168.19,6.15953386]
[1641324535467,85.6317546,168.28,168.16,42.90767506]
[1641324536069,10.60534486,168.27,168.16,9.5123686]
[1641324536470,10.60534486,168.27,168.16,12.5123686]
[1641324536668,10.60534486,168.27,168.16,9.5123686]
[1641324536869,85.6317546,168.28,168.16,9.5123686]
[1641324538369,64.6716,168.28,168.16,9.5123686]
[1641324538569,27.66479,168.29,168.16,12.5123686]
[1641324538769,27.66479,168.29,168.16,9.15953386]
[1641324538968,60.4494,168.32,168.18,3.0]
[1641324539169,60.4494,168.32,168.19,63.4333]
[1641324539669,60.4494,168.32,168.19,91.09809]
[1641324539670,27.66479,168.31,168.19,91.09809]
[1641324541273,60.4494,168.32,168.19,94.09809]
[1641324541672,60.4494,168.32,168.24,27.66479]
[1641324542074,12.52672195,168.33,168.24,27.66479]
[1641324542676,12.52672195,168.33,168.25,18.66512449]
[1641324543277,12.52672195,168.33,168.25,12.52672195]
[1641324543476,12.52672195,168.3,168.24,27.66479]
[1641324543676,12.52672195,168.3,168.24,55.32958]
[1641324544777,12.52672195,168.32,168.24,67.85630195]
[1641324544976,12.52672195,168.32,168.25,3.0]
[1641324545177,12.52672195,168.32,168.24,78.21430195]
[1641324545579,33.39530646,168.37,168.28,3.0]
[1641324545779,33.39530646,168.37,168.34,27.66479]
[1641324545977,33.39530646,168.37,168.34,32.31879]
[1641324546578,33.39530646,168.41,168.34,32.31879]
[1641324547780,33.39530646,168.41,168.37,27.66479]
[1641324548379,33.39530646,168.43,168.37,27.66479]
[1641324549680,33.39530646,168.43,168.41,27.66479]
[1641324549880,33.39530646,168.43,168.41,33.54279]
[1641324550083,33.39530646,168.45,168.41,33.54279]
[1641324551179,50.13210151,168.5,168.41,33.54279]
[1641324551180,33.39530646,168.47,168.41,33.54279]
[1641324551781,33.39530646,168.47,168.44,27.66479]
[1641324552382,36.31727617,168.5,168.44,27.66479]
[1641324553982,33.39530646,168.49,168.44,27.66479]
[1641324555182,33.39530646,168.5,168.44,27.66479]
[1641324555884,33.39530646,168.49,168.44,33.17079]
[1641324556481,6.46e-06,168.49,168.44,33.17079]
[1641324557183,6.46e-06,168.49,168.44,27.66479]
[1641324557383,6.46e-06,168.49,168.44,30.66479]
[1641324557584,17.96790327,168.53,168.44,27.66479]
[1641324557784,27.66479,168.56,168.45,1.49114699]
[1641324558386,30.66479,168.56,168.45,1.49114699]
[1641324558584,3.0,168.53,168.45,1.49114699]
[1641324558785,6.698,168.53,168.45,1.49114699]
[1641324559684,2.92196971,168.52,168.44,27.66479]
[1641324560785,2.92196971,168.51,168.44,27.66479]
[1641324561386,2.92196971,168.51,168.44,30.66479]
[1641324561787,2.92196971,168.5,168.44,27.66479]
[1641324561988,2.92196971,168.5,168.44,92.06889]
[1641324562188,2.92196971,168.5,168.45,3.0]
[1641324562388,2.92196971,168.5,168.46,3.0]
[1641324562587,27.66479,168.56,168.45,8.73013762]
[1641324562588,2.92196971,168.49,168.45,8.73013762]
[1641324562789,2.92196971,168.49,168.45,5.73013762]
[1641324562988,6.971e-05,168.49,168.45,5.73013762]
[1641324563391,27.66479,168.56,168.45,4.239]
[1641324563990,27.66479,168.56,168.44,27.66479]
[1641324564190,32.35579,168.56,168.44,27.66479]
[1641324564789,35.35579,168.56,168.44,27.66479]
[1641324564991,3.0,168.54,168.44,27.66479]
[1641324565390,3.0,168.53,168.44,27.66479]
[1641324565792,3.0,168.52,168.44,27.66479]
[1641324565994,8.878,168.52,168.44,27.66479]
[1641324566595,3.0,168.51,168.44,27.66479]
[1641324566993,3.0,168.49,168.35,62.2373]
[1641324567393,3.0,168.51,168.35,62.2373]
[1641324567593,149.81883514,168.52,168.35,62.2373]
[1641324567794,27.66479,168.5,168.4,27.66479]
[1641324568593,9.90403514,168.49,168.4,27.66479]
[1641324568994,9.90403514,168.49,168.4,31.66479]
[1641324569394,9.90403514,168.49,168.4,27.66479]
[1641324569594,71.4989,168.52,168.4,27.66479]
[1641324569795,71.4989,168.52,168.41,6.83622487]
[1641324570494,9.90422492,168.51,168.41,6.83622487]
[1641324571497,9.90422492,168.51,168.41,9.83622487]
[1641324571697,9.90422492,168.51,168.46,4.18511301]
[1641324572296,27.66479,168.53,168.46,4.18511301]
[1641324572499,27.66479,168.53,168.47,4.18511301]
[1641324573400,9.90414805,168.52,168.47,4.18511301]
[1641324573799,27.66479,168.53,168.48,4.18511301]
[1641324574000,8.94,168.54,168.48,4.18511301]
[1641324575000,9.90264487,168.55,168.49,4.18511301]
[1641324575801,12.55416812,168.52,168.48,4.18511301]
[1641324577201,18.16716812,168.52,168.48,4.18511301]
[1641324577402,5.613,168.52,168.49,4.18511301]
[1641324577903,33.27779,168.52,168.49,4.18511301]
[1641324578103,45.83195812,168.52,168.48,4.18511301]
[1641324578903,45.83195812,168.52,168.46,4.18511301]
[1641324578904,12.55416812,168.5,168.46,4.18511301]
[1641324579709,12.55416812,168.49,168.45,4.18511301]
[1641324579910,15.55416812,168.49,168.45,4.18511301]
[1641324581212,3.0,168.46,168.44,4.18511301]
[1641324581413,3.0,168.45,168.4,12.55416812]
[1641324582010,30.66479,168.44,168.4,12.55416812]
[1641324582211,27.66479,168.44,168.37,12.55416812]
[1641324582411,30.66479,168.44,168.37,12.55416812]
[1641324582811,3.0,168.43,168.37,12.55416812]
[1641324583413,12.55416812,168.42,168.35,12.55416812]
[1641324583614,18.21316812,168.42,168.35,12.55416812]
[1641324584414,18.21316812,168.42,168.34,19.3904903]
[1641324584914,18.21316812,168.42,168.35,12.55416812]
[1641324585113,5.659,168.42,168.35,12.55416812]
[1641324585313,12.55416812,168.43,168.35,12.55416812]
[1641324586818,27.66479,168.44,168.33,30.66479]
[1641324587115,30.66479,168.46,168.36,3.0]
[1641324587116,27.66479,168.46,168.36,3.0]
[1641324587318,12.55416812,168.5,168.38,3.0]
[1641324587519,12.55416812,168.5,168.37,4.0]
[1641324587718,12.55416812,168.5,168.38,3.0]
[1641324587919,12.55416812,168.5,168.41,27.66479]
[1641324588522,93.56099,168.53,168.41,27.66479]
[1641324588722,3.0,168.52,168.41,27.66479]
[1641324588922,93.56099,168.53,168.41,27.66479]
[1641324589123,3.0,168.52,168.41,27.66479]
[1641324589323,3.0,168.5,168.35,66.8258]
[1641324589522,3.0,168.5,168.35,63.8258]
[1641324589721,4.214,168.52,168.35,66.8258]
[1641324589722,3.0,168.51,168.35,66.8258]
[1641324589922,27.66479,168.49,168.38,27.66479]
[1641324591123,4.214,168.52,168.38,27.66479]
[1641324591926,4.214,168.52,168.39,3.0]
[1641324592124,90.56099,168.53,168.42,27.66479]
[1641324592827,93.56099,168.53,168.42,27.66479]
[1641324593828,90.56099,168.53,168.42,27.66479]
[1641324594529,12.55416812,168.49,168.42,27.66479]
[1641324596129,12.55416812,168.49,168.42,30.66479]
[1641324596328,12.55416812,168.49,168.43,3.0]
[1641324596730,12.55416812,168.47,168.43,3.0]
[1641324596929,12.55416812,168.47,168.44,3.0]
[1641324597132,33.4774378,168.51,168.43,7.0]
[1641324597432,33.4774378,168.53,168.43,7.0]
[1641324597631,33.4774378,168.53,168.44,3.0]
[1641324598034,33.4774378,168.53,168.48,27.66479]
[1641324598234,43.48236127,168.54,168.48,27.66479]
[1641324599335,33.4774378,168.55,168.48,27.66479]
[1641324599638,36.4774378,168.55,168.48,27.66479]
[1641324600235,3.0,168.55,168.48,27.66479]
[1641324603336,2.59182749,168.54,168.48,27.66479]
[1641324604039,2.59182749,168.54,168.45,92.23559]
[1641324605440,2.59182749,168.54,168.46,1.59265622]
[1641324606040,2.59182749,168.54,168.48,27.66479]
[1641324607541,2.59182749,168.55,168.49,1.59265622]
[1641324608042,2.59182749,168.55,168.51,27.66479]
[1641324608842,12.59675096,168.56,168.51,27.66479]
[1641324609442,2.59182749,168.55,168.51,27.66479]
[1641324610243,33.4774378,168.58,168.51,27.66479]
[1641324612344,36.06926529,168.59,168.51,27.66479]
[1641324613246,33.4774378,168.56,168.51,27.66479]
[1641324613545,38.3004378,168.56,168.51,27.66479]
[1641324613746,33.4774378,168.55,168.51,27.66479]
[1641324614647,33.4774378,168.57,168.51,27.66479]
[1641324616548,33.4774378,168.57,168.48,27.66479]
[1641324616950,36.4774378,168.57,168.48,27.66479]
[1641324617149,36.4774378,168.57,168.45,64.5708]
[1641324617349,3.0,168.56,168.45,64.5708]
[1641324617549,3.0,168.53,168.45,64.5708]
[1641324617751,7.82,168.53,168.41,33.4774378]
[1641324617950,7.82,168.53,168.42,59.9405]
[1641324618151,35.48479,168.53,168.43,27.66479]
[1641324618350,2.59182749,168.52,168.43,36.29423592]
[1641324618951,5.59182749,168.52,168.43,36.29423592]
[1641324619151,15.59675096,168.52,168.44,1.59263557]
[1641324619551,12.59675096,168.52,168.44,1.59263557]
[1641324619953,2.59182749,168.51,168.44,1.59263557]
[1641324621254,2.59182749,168.51,168.43,27.66479]
[1641324621457,36.06926529,168.51,168.43,27.66479]
[1641324623058,3.0,168.5,168.43,27.66479]
[1641324623357,3.0,168.5,168.4,27.66479]
[1641324623558,36.06926529,168.49,168.4,27.66479]
[1641324623758,41.95226529,168.49,168.4,27.66479]
[1641324624357,2.59182749,168.48,168.4,27.66479]
[1641324624559,2.59182749,168.48,168.41,1.59233788]
[1641324627259,12.55775474,168.48,168.41,1.59233788]
[1641324628362,12.55775474,168.48,168.43,27.66479]
[1641324628663,12.55775474,168.47,168.43,33.95979]
[1641324629664,12.55767996,168.48,168.44,1.59233788]
[1641324632371,12.55767996,168.48,168.46,27.66479]
[1641324633875,36.06926529,168.51,168.46,27.66479]
[1641324634274,36.06926529,168.51,168.5,27.66479]
[1641324634875,2.59182749,168.51,168.5,27.66479]
[1641324635577,2.59182749,168.51,168.47,1.70555926]
[1641324635775,5.578,168.51,168.38,7.0]
[1641324635975,5.578,168.51,168.39,65.778]
[1641324636175,5.578,168.51,168.4,3.0]
[1641324636376,5.578,168.51,168.44,27.66479]
[1641324636775,2.47981834,168.5,168.44,27.66479]
[1641324637175,2.47981834,168.5,168.44,30.66479]
[1641324637376,2.47981834,168.5,168.45,3.0]
[1641324637578,2.47981834,168.5,168.45,1.59252621]
[1641324637778,2.47981834,168.5,168.45,4.59252621]
[1641324638077,2.47981834,168.5,168.45,1.59252621]
[1641324638276,2.47981834,168.5,168.47,27.66479]
[1641324638476,12.48474181,168.54,168.47,27.66479]
[1641324638977,2.47981834,168.53,168.48,1.59252621]
[1641324639977,35.95725614,168.55,168.47,27.66479]
[1641324640580,2.47981834,168.55,168.48,1.59340744]
[1641324642079,2.47981834,168.55,168.49,4.18470444]
[1641324643085,2.47981834,168.55,168.48,1.59340744]
[1641324643086,2.47981834,168.55,168.5,4.18470444]
[1641324643682,2.47981834,168.55,168.49,4.18470444]
[1641324645086,2.47981834,168.55,168.48,3.0]
[1641324645790,2.47981834,168.55,168.48,7.18470444]
[1641324647792,8.02781834,168.55,168.48,4.18470444]
[1641324647992,3.0,168.53,168.48,4.18470444]
[1641324648192,11.02781834,168.55,168.48,4.18470444]
[1641324648391,2.47981834,168.52,168.46,4.18470444]
[1641324648591,30.14460834,168.52,168.46,4.18470444]
[1641324648792,33.14460834,168.52,168.46,4.18470444]
[1641324649391,30.14460834,168.52,168.46,4.18470444]
[1641324649692,33.14460834,168.52,168.46,4.18470444]
[1641324649891,2.47981834,168.51,168.44,4.18470444]
[1641324650091,7.07481834,168.51,168.44,4.18470444]
[1641324650492,2.47981834,168.5,168.44,4.18470444]
[1641324651493,2.47981834,168.5,168.45,4.18470444]
[1641324654195,11.88452948,168.51,168.45,4.18470444]
[1641324656199,5.47981834,168.52,168.46,4.18470444]
[1641324656399,2.47981834,168.52,168.46,4.18470444]
[1641324656999,2.47981834,168.51,168.46,4.18470444]
[1641324657600,2.47981834,168.51,168.49,4.18470444]
[1641324657800,27.66479,168.56,168.49,4.18470444]
[1641324657801,11.88452948,168.55,168.49,4.18470444]
[1641324660002,45.36196728,168.55,168.48,5.8871086]
[1641324660604,3.0,168.54,168.48,5.8871086]
[1641324660905,54.58096728,168.55,168.47,5.8871086]
[1641324661103,3.0,168.52,168.47,5.8871086]
[1641324661304,51.58096728,168.55,168.47,5.8871086]
[1641324661504,2.47981834,168.51,168.46,4.18470444]
[1641324662305,2.47981834,168.53,168.47,4.18470444]
[1641324663107,2.47981834,168.54,168.47,4.18470444]
[1641324663807,5.47981834,168.54,168.47,4.18470444]
[1641324664008,2.47981834,168.54,168.47,4.18470444]
[1641324664508,5.47981834,168.54,168.48,4.18470444]
[1641324664908,12.55515652,168.52,168.48,4.18470444]
[1641324667113,12.55515652,168.54,168.5,4.18470444]
[1641324667915,12.55515652,168.55,168.5,4.18470444]
[1641324668616,12.55515652,168.54,168.49,5.8871086]
[1641324671922,15.03497486,168.55,168.49,5.8871086]
[1641324672122,15.03497486,168.55,168.5,4.18470444]
[1641324673125,4.18132955,168.52,168.51,4.18470444]
[1641324673825,12.55515652,168.56,168.51,4.18470444]
[1641324674024,15.0171577,168.56,168.51,4.18470444]
[1641324674624,4.18130522,168.52,168.51,4.18470444]
[1641324675425,12.55515652,168.55,168.51,4.18470444]
[1641324676326,12.55515652,168.55,168.51,7.18470444]
[1641324676525,5.652e-05,168.55,168.51,4.18470444]
[1641324676724,11.82195282,168.56,168.51,4.18470444]
[1641324677025,83.60953931,168.63,168.55,27.66479]
[1641324677224,33.4774378,168.63,168.55,27.66479]
[1641324679029,2.34577065,168.62,168.55,31.84949444]
[1641324679630,11.38508238,168.64,168.56,6.01488637]
[1641324681533,11.38508238,168.64,168.57,4.18470444]
[1641324683934,11.38508238,168.64,168.56,6.01488637]
[1641324685035,11.38508238,168.64,168.58,27.66479]
[1641324686336,2.34577065,168.64,168.58,27.66479]
[1641324691040,9.03931173,168.66,168.63,27.66479]
[1641324691241,9.03931173,168.66,168.63,31.77379]
[1641324691741,1.173e-05,168.66,168.63,31.77379]
[1641324691941,33.4774378,168.68,168.63,34.77379]
[1641324692140,33.4774378,168.68,168.64,3.0]
[1641324692342,33.4774378,168.68,168.63,31.77379]
[1641324692540,25.7772378,168.68,168.65,3.0]
[1641324692745,50.13210151,168.73,168.66,3.0]
[1641324693143,13.2863209,168.77,168.69,27.66479]
[1641324693342,13.2863209,168.77,168.69,33.09879]
[1641324694343,27.66479,168.8,168.71,4.18470444]
[1641324695745,27.66479,168.82,168.71,4.18470444]
[1641324696347,27.66479,168.82,168.75,4.18470444]
[1641324696546,3.0,168.89,168.75,8.92770444]
[1641324696946,3.0,168.88,168.75,8.92770444]
[1641324697146,27.66479,168.89,168.77,27.66479]
[1641324697347,50.13210151,168.9,168.79,4.18470444]
[1641324697647,3.0,168.88,168.79,10.04470444]
[1641324698048,39.38479,168.91,168.79,10.04470444]
[1641324698246,36.38479,168.91,168.79,10.04470444]
[1641324698648,12.37320991,168.9,168.8,4.18470444]
[1641324699249,15.37320991,168.9,168.8,4.18470444]
[1641324699450,12.37320991,168.9,168.8,4.18470444]
[1641324699649,3.0,168.87,168.8,4.18470444]
[1641324700151,4.778,168.9,168.82,4.18470444]
[1641324700350,3.0,168.88,168.82,4.18470444]
[1641324700750,3.0,168.87,168.82,4.18470444]
[1641324701552,30.66479,168.88,168.82,4.18470444]
[1641324701751,27.66479,168.88,168.79,4.18470444]
[1641324702552,27.66479,168.88,168.8,4.18470444]
[1641324702753,3.0,168.87,168.8,4.18470444]
[1641324702953,27.66479,168.88,168.8,4.18470444]
[1641324703152,3.0,168.85,168.8,4.18470444]
[1641324703452,30.66479,168.85,168.8,4.18470444]
[1641324703752,3.0,168.84,168.79,4.18470444]
[1641324703952,3.0,168.82,168.79,4.18470444]
[1641324704352,9.286,168.82,168.79,4.44e-06]
[1641324704753,9.286,168.82,168.74,27.66479]
[1641324704954,6.286,168.82,168.74,27.66479]
[1641324706053,59.8351,168.86,168.74,27.66479]
[1641324706252,59.8351,168.86,168.74,36.49779]
[1641324706653,59.8351,168.86,168.74,33.49779]
[1641324706853,59.8351,168.86,168.75,12.8687773]
[1641324707853,59.8351,168.86,168.84,12.53528544]
[1641324708054,27.66479,168.88,168.84,12.53528544]
[1641324708253,27.66479,168.88,168.84,18.93228544]
[1641324708854,27.66479,168.88,168.86,12.53528544]
[1641324709459,62.2516,168.93,168.86,12.53528544]
[1641324709654,3.0,168.93,168.86,12.53528544]
[1641324709855,3.0,168.93,168.84,6.397]
[1641324710057,9.04,168.95,168.84,6.397]
[1641324710355,9.04,168.95,168.88,12.53223021]
[1641324711254,20.05205545,168.94,168.88,12.53223021]
[1641324711456,27.66479,168.92,168.88,12.53223021]
[1641324712458,27.66479,168.92,168.87,12.53223021]
[1641324713258,27.66479,168.92,168.86,12.53223021]
[1641324713457,27.66479,168.88,168.86,12.53223021]
[1641324713659,33.77279,168.88,168.86,12.53223021]
[1641324714359,33.77279,168.88,168.83,8.68194056]
[1641324714860,27.66479,168.88,168.82,33.42072843]
[1641324715261,27.66479,168.88,168.79,33.42072843]
[1641324715661,27.66479,168.88,168.79,36.42072843]
[1641324716863,27.66479,168.88,168.79,33.42072843]
[1641324717163,27.66479,168.88,168.79,3.0]
[1641324717362,27.66479,168.88,168.78,54.97144629]
[1641324717864,27.66479,168.88,168.8,33.42072843]
[1641324718364,27.66479,168.88,168.79,33.42072843]
[1641324718967,33.23579,168.88,168.79,33.42072843]
[1641324719366,27.66479,168.85,168.79,33.42072843]
[1641324720468,27.66479,168.85,168.78,33.42072843]
[1641324721269,27.66479,168.85,168.73,58.81404207]
[1641324721474,27.66479,168.77,168.73,58.81404207]
[1641324721670,27.66479,168.85,168.74,24.55071786]